fUSD/lending_fUSD_20240121
["ID","MTS","AMOUNT","RATE_DAILY","PERIOD"]
[312366654,1705834243688,-1042.29691372,0.00022899,2]
[312366655,1705834243697,-5000.0,0.00022899,2]
[312366656,1705834243707,-2064.8916,0.00022899,2]
[312366657,1705834243716,-69.81907455,0.000229,2]
[312366660,1705834246098,-541.0,0.000229,2]
[312366661,1705834246155,-119.49714043,0.000229,2]
[312366662,1705834246165,-175.54086522,0.000229,2]
[312366663,1705834246174,-207.66828731,0.000229,2]
[312366664,1705834246184,-250.0,0.000229,2]
[312366665,1705834246193,-157.01037795,0.000229,2]
[312366666,1705834246202,-568.03725186,0.000229,2]
[312366667,1705834246212,-712.3638776,0.000229,2]
[312366668,1705834246221,-899.00975052,0.000229,6]
[312366669,1705834246230,-156.84105949,0.00022978,2]
[312366670,1705834246240,-746.91569005,0.00022979,3]
[312366671,1705834246249,-830.0,0.00022979,2]
[312366672,1705834246259,-6677.25570738,0.00022979,2]
[312366673,1705834246268,-3095.50963829,0.00022979,2]
[312366674,1705834246278,-235.65370475,0.00022979,2]
[312366675,1705834246288,-155.0,0.00022979,2]
[312366676,1705834246297,-1736.15090456,0.00022979,2]
[312366677,1705834246309,-16906.45,0.00022979,2]
[312366678,1705834246320,-10245.41892599,0.00022979,2]
[312366679,1705834246332,-424.76744693,0.00022979,2]
[312366680,1705834247063,-638.385118,0.00022979,2]
[312366681,1705834247078,-66647.63710433,0.00022979,2]
[312366682,1705834247091,-6187.17502677,0.00022979,2]
[312366683,1705834247105,-30368.65862832,0.00022979,2]
[312366684,1705834247138,-20875.38220825,0.00022979,2]
[312366685,1705834247152,-1652.23369807,0.00022979,2]
[312366700,1705835139393,307.44,0.00019271,2]
[312366717,1705835432571,-155.0,0.00019727,2]
[312366718,1705835432581,-3014.86149493,0.00019728,2]
[312366719,1705835432591,-449.39517917,0.000202,2]
[312366720,1705835432600,-250.0,0.00021074,2]
[312366721,1705835432610,-200.0,0.00021141,2]
[312366722,1705835432619,-1283.92172655,0.00021145,2]
[312366723,1705835432630,-551.18944077,0.00021145,2]
[312366724,1705835432642,-1130.11883268,0.00021145,2]
[312366725,1705835432651,-356.17,0.00021149,2]
[312366726,1705835432661,-624.78,0.00021159,2]
[312366727,1705835432670,-509.22,0.00021169,2]
[312366728,1705835432679,-209.0,0.00021175,2]
[312366729,1705835432688,-2000.0,0.00021188,2]
[312366730,1705835432698,-213.11261473,0.00021192,2]
[312366731,1705835432709,-286.87738527,0.00021192,2]
[312366732,1705835432719,-160.13,0.00021284,2]
[312366733,1705835432728,-159.79,0.00021284,2]
[312366734,1705835432737,-307.44,0.00021535,2]
[312366735,1705835432747,-159.79,0.00021562,2]
[312366736,1705835432757,-490.78,0.00021618,2]
[312366737,1705835432766,-914.52,0.00021644,2]
[312366738,1705835432775,-441.82,0.00021742,2]
[312366739,1705835432785,-159.79,0.00021839,2]
[312366740,1705835432794,-250.0,0.000219,2]
[312366741,1705835432803,-160.33,0.00021906,2]
[312366742,1705835432812,-250.0,0.00021918,2]
[312366743,1705835432821,-2863.65,0.00021918,2]
[312366744,1705835432831,-6039.01232517,0.00022,2]
[312366756,1705835438403,-702.07506478,0.00022,2]
[312366757,1705835438419,-399.37201755,0.00022,2]
[312366758,1705835438463,-3466.66028671,0.00022,2]
[312366759,1705835438575,-19761.97258831,0.00022,2]
[312366760,1705835438586,-176.39,0.00022,2]
[312366761,1705835438597,-150.0,0.00022,2]
[312366762,1705835438607,-160.33,0.00022052,2]
[312366763,1705835438617,-159.79,0.00022116,2]
[312366764,1705835438627,-160.33,0.00022198,2]
[312366765,1705835438636,-160.33,0.00022344,2]
[312366766,1705835438646,-159.79,0.00022394,2]
[312366767,1705835438656,-221.33775642,0.00022445,3]
[312366768,1705835438666,-914.52,0.00022445,2]
[312366769,1705835438675,-1627.1378,0.00022499,2]
[312366770,1705835438685,-208.0607197,0.00022499,4]
[312366771,1705835438695,-3139.0,0.000225,2]
[312366772,1705835438704,-15785.52377923,0.000225,2]
[312366773,1705835438722,-334.41374848,0.000225,2]
[312366774,1705835438738,-422.496,0.000225,2]
[312367008,1705835440929,-8883.56647229,0.000225,2]
[312367009,1705835440938,-176.39,0.00022548,2]
[312367010,1705835440947,-755.6568,0.00022598,2]
[312367011,1705835440955,-457.383,0.00022599,2]
[312367012,1705835440964,-6409.59476009,0.00022599,2]
[312367013,1705835440977,-1372.76553991,0.00022599,2]
[312367014,1705835440986,-504.03826774,0.00022697,2]
[312367015,1705835440995,-1225.27982932,0.00022698,2]
[312367016,1705835441006,-1082.02499944,0.00022698,2]
[312367024,1705835441102,61266.42,0.00036111,30]
[312367074,1705835441610,-5443.88,0.00022698,2]
[312367075,1705835441621,-1020.20809265,0.00022698,2]
[312367076,1705835441632,-1905.18170778,0.00022698,2]
[312367087,1705835443343,-6943.1506905,0.00022698,2]
[312367088,1705835443355,-3214.79319186,0.00022698,2]
[312367089,1705835443365,-1288.4522488,0.00022699,2]
[312367090,1705835443376,-5452.81043873,0.00022699,2]
[312367091,1705835443589,-514.59376721,0.00022699,2]
[312367092,1705835443602,-724.63421909,0.00022699,2]
[312367093,1705835443613,-4272.69298,0.00022699,2]
[312367094,1705835443625,-75741.45737607,0.00022699,2]
[312367095,1705835443636,-1258.41579175,0.00022699,2]
[312367096,1705835443647,-5826.51945158,0.00022699,2]
[312367098,1705835446319,-919.84914807,0.00022699,2]
[312367099,1705835446357,-707.74103951,0.00022699,2]
[312367100,1705835446369,-14424.99778769,0.00022699,2]
[312367101,1705835446471,-906.5198949,0.00022699,2]
[312367102,1705835446968,-1148.99087199,0.00022699,2]
[312367103,1705835447025,-3614.68000458,0.00022699,2]
[312367104,1705835447037,-15555.20000039,0.00022699,2]
[312367105,1705835447049,-1302.56353833,0.00022699,2]
[312367106,1705835447081,-9473.70654131,0.00022699,2]
[312367107,1705835447090,-189.34575064,0.00022703,2]
[312367108,1705835447100,-488.13402773,0.00022797,2]
[312367109,1705835447109,-420.81,0.00022798,2]
[312367110,1705835447119,-9448.94989005,0.00022799,2]
[312367112,1705835676892,2000.0,0.00036121,30]
[312367114,1705835948019,-370.66246971,0.00019948,2]
[312367115,1705835948039,-504.21645281,0.00019949,2]
[312367116,1705835948059,-279.32271034,0.00019949,2]
[312367117,1705835948079,-155.0,0.00019949,2]
[312367118,1705835948102,-270.20106046,0.0001995,2]
[312367119,1705835948127,-276.69,0.00019966,2]
[312367120,1705835948148,-632.68,0.00021548,2]
[312367121,1705835948168,-2970.6995,0.00021618,2]
[312367122,1705835948189,-664.61,0.00021644,2]
[312367123,1705835948211,-179.71,0.00021676,2]
[312367124,1705835948230,-200.0,0.00021718,2]
[312367125,1705835948251,-286.41,0.00021723,2]
[312367126,1705835948273,-1864.1,0.00021759,2]
[312367127,1705835948296,-161.66,0.00021808,2]
[312367128,1705835948316,-150.0,0.00021821,2]
[312367129,1705835948335,-300.0,0.00021821,2]
[312367130,1705835948356,-592.62,0.00021822,2]
[312367131,1705835948378,-499.99,0.00021822,2]
[312367132,1705835948402,-250.0,0.00021918,2]
[312367133,1705835948422,-200.0,0.00021918,2]
[312367134,1705835948447,-176.39,0.00022,2]
[312367135,1705835948471,-9001.03780668,0.0002204,2]
[312367136,1705835962413,4000.0,0.00036125,30]
[312367137,1705835991804,150.0,0.00036125,30]
[312367141,1705836250843,-155.0,0.00019951,2]
[312367142,1705836250864,-370.66246971,0.00019951,2]
[312367143,1705836250885,-262.85,0.00019952,2]
[312367144,1705836250907,-525.9,0.00021868,2]
[312367145,1705836250938,-1617.58753029,0.00021909,2]
[312367147,1705836341161,-150.0,0.00020688,2]
[312367148,1705836341182,-150.0,0.00021147,4]
[312367151,1705836488945,152.0,0.0002046,2]
[312367152,1705836510586,249.7,0.00019862,2]
[312367162,1705836574305,155.0,0.00019862,2]
[312367163,1705836574532,243.56389639,0.0002,2]
[312367165,1705836576108,2176.62447328,0.0002,2]
[312367166,1705836576295,1158.64277149,0.00019862,2]
[312367167,1705836577767,2000.0,0.00021496,2]
[312367168,1705836577913,3005.83468397,0.00019862,2]
[312367169,1705836578186,283.2384976,0.00019862,2]
[312367170,1705836579254,159.21633296,0.00019862,2]
[312367171,1705836581063,828.4004548,0.00019862,2]
[312367172,1705836581625,3192.1431,0.00019862,2]
[312367173,1705836583749,155.0,0.00019862,2]
[312367174,1705836586247,156.41146554,0.00019862,2]
[312367175,1705836591211,284.18685088,0.00019862,2]
[312367176,1705836601750,155.0,0.00019862,2]
[312367177,1705836608720,155.0,0.00019862,2]
[312367178,1705836622702,155.0,0.00019862,2]
[312367179,1705836624182,155.0,0.00019862,2]
[312367196,1705836631491,-155.0,0.00021604,2]
[312367197,1705836631500,-154.95931812,0.00021605,2]
[312367198,1705836631551,-818.26057678,0.00021605,2]
[312367199,1705836631564,-485.80288671,0.00021605,2]
[312367200,1705836631605,-408.25,0.00021605,2]
[312367201,1705836631618,-303.88926851,0.00021605,2]
[312367202,1705836631628,-1835.26073149,0.00021605,2]
[312367203,1705836631663,-335.90131863,0.00021605,2]
[312367204,1705836631674,-577.35390733,0.00021605,2]
[312367208,1705836632268,-1593.80814279,0.00021605,2]
[312367209,1705836632277,-2171.16205012,0.00021605,2]
[312367210,1705836632286,-2171.16205012,0.00021605,2]
[312367211,1705836632296,-150.0,0.00021607,4]
[312367212,1705836632306,-579.28,0.00021657,2]
[312367213,1705836632315,-531.68,0.00021831,2]
[312367214,1705836632324,-286.41,0.00021836,2]
[312367215,1705836632334,-527.23,0.0002187,2]
[312367216,1705836632343,-250.0,0.000219,2]
[312367217,1705836632352,-250.0,0.00021918,2]
[312367218,1705836632361,-3191.26397536,0.00021962,2]
[312367219,1705836632370,-176.39,0.00022,2]
[312367220,1705836632379,-150.0,0.00022067,4]
[312367221,1705836632389,-249.7,0.00022126,2]
[312367222,1705836632398,-2476.20957475,0.00022191,2]
[312367223,1705836632407,-166.87862051,0.00022448,2]
[312367224,1705836632416,-150.0,0.00022527,4]
[312367225,1705836632426,-392.75,0.00022527,2]
[312367226,1705836632435,-166.87862046,0.00022538,2]
[312367227,1705836632444,-3608.0,0.00022542,2]
[312367228,1705836632453,-176.39,0.00022548,2]
[312367229,1705836632464,-1000.0,0.00022599,2]
[312367230,1705836632473,-166.87862046,0.00022629,2]
[312367231,1705836632482,-531.68,0.00022639,2]
[312367232,1705836632492,-371.182,0.00022648,2]
[312367233,1705836632502,-150.0,0.00022664,2]
[312367234,1705836632511,-166.87862046,0.00022719,2]
[312367235,1705836632521,-150.99,0.00022741,2]
[312367236,1705836632530,-151.0121,0.00022748,3]
[312367237,1705836632539,-226.25062942,0.00022797,3]
[312367238,1705836632550,-460.11336565,0.00022797,2]
[312367239,1705836632561,-332.91599344,0.00022797,2]
[312367240,1705836632570,-325.2653,0.00022798,2]
[312367241,1705836632580,-160.3786,0.000228,2]
[312367242,1705836632591,-39817.1612,0.000228,2]
[312367243,1705836632601,-206.0284,0.000228,2]
[312367244,1705836632610,-1011.4467,0.000228,2]
[312367245,1705836632619,-6012.5957,0.000228,2]
[312367246,1705836632629,-166.87862046,0.0002281,2]
[312367247,1705836632638,-4286.48015742,0.00022877,2]
[312367248,1705836632648,-155.0,0.00022877,2]
[312367249,1705836632657,-196.98832126,0.00022877,2]
[312367250,1705836632669,-338.86193139,0.00022877,2]
[312367251,1705836632679,-543.40300845,0.00022877,2]
[312367252,1705836632688,-1245.34417267,0.00022877,2]
[312367253,1705836632698,-625.0,0.00022879,2]
[312367254,1705836632709,-64958.89615869,0.00022879,2]
[312367255,1705836632722,-2325.77140613,0.00022879,2]
[312367256,1705836632739,-21317.5,0.00022879,2]
[312367265,1705836637540,-370.66246971,0.00021604,2]
[312367266,1705836637549,-31590.85713518,0.00022879,2]
[312367267,1705836637558,-1245.3441726,0.0002288,2]
[312367268,1705836637568,-1245.3441726,0.00022884,2]
[312367269,1705836637579,-1245.3441726,0.00022887,2]
[312367270,1705836637588,-1245.3441726,0.0002289,2]
[312367271,1705836637597,-1245.3441726,0.00022893,2]
[312367272,1705836637606,-1245.3441726,0.00022897,2]
[312367273,1705836637615,-5000.0,0.000229,2]
[312367274,1705836637624,-17840.73014282,0.000229,2]
[312367275,1705836637640,-2167.75826771,0.000229,2]
[312367493,1705836639991,-2732.69462281,0.000229,2]
[312367495,1705836640003,-1862.76032055,0.000229,2]
[312367554,1705836640638,-30951.05664611,0.000229,2]
[312367556,1705836640647,-34160.27665732,0.000229,2]
[312367558,1705836640656,-156.60463673,0.000229,2]
[312367560,1705836640666,-250.0,0.000229,2]
[312367562,1705836640678,-166.87862046,0.000229,2]
[312367564,1705836640687,-1430.02736614,0.000229,2]
[312367566,1705836640696,-166.20962493,0.000229,2]
[312367568,1705836640706,-1245.3441726,0.000229,2]
[312367570,1705836640716,-957.63781744,0.000229,6]
[312367572,1705836640725,-658.212,0.00022962,2]
[312367575,1705836640734,-19709.0,0.00022962,2]
[312367577,1705836640743,-2274.0,0.00022962,2]
[312367579,1705836640754,-239.45781891,0.0002297,2]
[312367581,1705836640764,-958.49077771,0.00022977,3]
[312367582,1705836640773,-337.2296826,0.00022977,2]
[312367584,1705836640782,-344.39303207,0.00022977,2]
[312367586,1705836640791,-155.0,0.00022977,2]
[312367588,1705836640800,-698.04764279,0.00022977,2]
[312367590,1705836640810,-1047.95988483,0.00022977,2]
[312367592,1705836640819,-3298.13430336,0.00022978,2]
[312367595,1705836640828,-186081.52770968,0.00022979,2]
[312367598,1705836640850,-813.9352847,0.00022979,2]
[312367600,1705836640861,-668.5742208,0.00022979,2]
[312367602,1705836640872,-429.27690379,0.00022979,2]
[312367647,1705836641278,-0.41426995,0.00022979,2]
[312367651,1705836641303,-9233.68984971,0.00022979,2]
[312367659,1705836641375,-1058.40994365,0.00022979,2]
[312367662,1705836641387,-654.48176482,0.00022979,2]
[312367664,1705836641400,-455.20087013,0.00022979,2]
[312367666,1705836641411,-5494.98237942,0.00022979,2]
[312367787,1705836642504,-855.62630079,0.00022979,2]
[312367789,1705836642516,-352.72799642,0.00022979,2]
[312367792,1705836642527,-688.150643,0.00022979,2]
[312367796,1705836642559,-13323.82974772,0.00022979,2]
[312367798,1705836642568,-111270.99995701,0.0002298,2]
[312367804,1705836642615,-29449.6117533,0.0002298,2]
[312367806,1705836642627,-6044.51834078,0.0002298,2]
[312367808,1705836642638,-1771.35412197,0.0002298,2]
[312367811,1705836642649,-1084.22470258,0.0002298,2]
[312367813,1705836642658,-158.7197607,0.00022986,4]
[312367815,1705836642667,-210.23186308,0.00022998,2]
[312367817,1705836642680,-79.7204984,0.00022998,2]
[312367819,1705836642689,-4320.68427417,0.00022999,2]
[312367821,1705836642700,-1073.71678472,0.00022999,2]
[312367823,1705836642712,-695.22988257,0.00022999,2]
[312367826,1705836642731,-803.92841362,0.00022999,2]
[312367828,1705836642742,-1583.15590283,0.00022999,2]
[312367831,1705836642754,-1917.86121838,0.00022999,2]
[312367833,1705836642765,-741.0,0.00022999,2]
[312367835,1705836642774,-123.15838102,0.00022999,2]
[312367839,1705836642801,155.0,0.00019862,2]
[312367841,1705836642814,-27.84161898,0.00022999,2]
[312367843,1705836642823,-846903.76330178,0.00022999,3]
[312367846,1705836642841,-1118.38400007,0.00022999,3]
[312367848,1705836642853,-9350.48553595,0.00022999,3]
[312367850,1705836642864,-2108.03273624,0.00022999,3]
[312367853,1705836642876,-4712.03340236,0.00022999,3]
[312367856,1705836642896,-565.44502803,0.00022999,3]
[312368114,1705836645516,-1046.992628,0.00022999,3]
[312368127,1705836645627,-21796.49356416,0.00022999,3]
[312368129,1705836645638,-7634.99999955,0.00022999,3]
[312368131,1705836645649,-1456.44370652,0.00022999,3]
[312368137,1705836645690,-155.0,0.00022998,2]
[312368139,1705836645699,-5745.92027277,0.00022999,3]
[312368141,1705836645710,-19520.78832293,0.00022999,3]
[312368143,1705836645722,-897.31553628,0.00022999,3]
[312368146,1705836645743,-664.62392199,0.00022999,3]
[312368149,1705836645758,-446.712,0.00022999,3]
[312368161,1705836645860,-307.0817172,0.00022999,3]
[312368402,1705836965496,291.91,0.00019845,2]
[312368405,1705837084218,208.0,0.00021028,2]
[312368406,1705837175500,47651.4155257,0.00036112,30]
[312368407,1705837226829,1000.0,0.00021,2]
[312368408,1705837227166,565.81,0.00021466,2]
[312368409,1705837253030,-818.36,0.00021601,2]
[312368410,1705837253056,-1198.02,0.00021601,2]
[312368411,1705837253082,-2000.0,0.0002162,2]
[312368412,1705837257329,1000.0,0.00021,2]
[312368415,1705837310755,4983.62,0.00021526,2]
[312368416,1705837352538,150.0,0.00021474,2]
[312368417,1705837380506,200.0,0.00021479,2]
[312368466,1705837575027,463.43,0.00021441,2]
[312368481,1705837630174,168.08,0.00021486,2]
[312368485,1705837642261,277.31,0.00019577,2]
[312368509,1705837755164,18175.55,0.00021428,2]
[312368510,1705837768343,250.0,0.00021446,2]
[312368511,1705837768620,181.2021,0.00021425,2]
[312368515,1705837806508,471.5,0.00021416,2]
[312368522,1705837831754,-384.45393113,0.00021503,2]
[312368523,1705837831765,-500.0,0.00021504,2]
[312368524,1705837831776,-237.04,0.00021514,2]
[312368525,1705837831786,-150.0,0.00021525,2]
[312368526,1705837831797,-8.2887777,0.00021586,2]
[312368527,1705837831811,-149.92436486,0.00021586,2]
[312368528,1705837831821,-511.24403107,0.00021629,2]
[312368529,1705837831834,-1807.03596893,0.00021629,2]
[312368530,1705837831844,-150.0,0.00021644,2]
[312368531,1705837831854,-388.55,0.00021644,2]
[312368532,1705837831864,-160.13,0.00021686,2]
[312368533,1705837831874,-152.77303559,0.00021708,2]
[312368534,1705837831887,-5.68696441,0.00021708,2]
[312368535,1705837831897,-4288.83419534,0.00021708,2]
[312368536,1705837831910,-643.63892904,0.00021708,2]
[312368537,1705837833575,-758.2834467,0.00021708,2]
[312368538,1705837833633,-658.34702874,0.00021708,2]
[312368539,1705837833644,-250.0,0.00021708,2]
[312368540,1705837833690,-73.63640018,0.00021708,2]
[312368541,1705837833699,-536.57,0.00021709,2]
[312368542,1705837833709,-157.44,0.00021713,2]
[312368543,1705837833718,-158.46,0.00021795,2]
[312368544,1705837833727,-158.21314254,0.00021805,2]
[312368545,1705837833737,-277.31,0.0002184,2]
[312368546,1705837833746,-157.44,0.00021854,2]
[312368548,1705837833755,-158.46,0.00021882,2]
[312368550,1705837833764,-176.39,0.000219,2]
[312368552,1705837833773,-318.09896962,0.000219,2]
[312368553,1705837833782,-250.0,0.00021918,2]
[312368555,1705837833791,-158.46,0.00021969,2]
[312368557,1705837833800,-157.44,0.00021995,2]
[312368558,1705837833809,-150.0,0.00022,2]
[312368560,1705837833818,-152.97410498,0.00022,2]
[312368561,1705837833827,-941.57917044,0.00022,2]
[312368562,1705837833836,-499.99,0.00022019,2]
[312368563,1705837834054,-158.21314254,0.00022024,2]
[312368564,1705837834067,-158.46,0.00022056,2]
[312368565,1705837834076,-171.55,0.00022122,2]
[312368566,1705837834085,-157.44,0.00022137,2]
[312368567,1705837834094,-158.46,0.00022142,2]
[312368568,1705837834103,-167.14,0.00022165,2]
[312368569,1705837834112,-158.21314254,0.00022243,2]
[312368570,1705837834121,-157.44,0.00022278,2]
[312368571,1705837834130,-157.44,0.0002242,2]
[312368572,1705837834139,-225.49514735,0.00022445,3]
[312368573,1705837834148,-388.55,0.00022445,2]
[312368574,1705837834158,-176.39,0.00022448,2]
[312368575,1705837834167,-158.21314254,0.00022462,2]
[312368576,1705837834175,-157.44,0.00022561,2]
[312368577,1705837834186,-158.21314254,0.00022681,2]
[312368578,1705837834195,-157.44,0.00022703,2]
[312368579,1705837834204,-152.04,0.00022711,2]
[312368580,1705837834214,-157.44,0.00022844,2]
[312368581,1705837834224,-158.63960179,0.00022882,2]
[312368582,1705837834234,-2869.8311,0.00022898,2]
[312368583,1705837834244,-3302.6703,0.00022898,2]
[312368584,1705837834253,-1164.4409,0.000229,2]
[312368585,1705837834262,-5000.0,0.000229,2]
[312368586,1705837834271,-19781.6002,0.000229,2]
[312368587,1705837834280,-250.0,0.000229,2]
[312368588,1705837834290,-550.70629691,0.000229,2]
[312368589,1705837834299,-156.26651898,0.000229,2]
[312368590,1705837834308,-1167.47869433,0.000229,2]
[312368591,1705837834317,-1294.53748835,0.000229,2]
[312368592,1705837834327,-4076.24735164,0.000229,2]
[312368593,1705837834337,-638.84363248,0.000229,2]
[312368594,1705837834347,-766.11025392,0.000229,6]
[312368595,1705837834356,-158.21314254,0.000229,2]
[312368596,1705837834366,-409.30432801,0.000229,2]
[312368597,1705837834375,-176.39,0.00022996,2]
[312368598,1705837834384,-155.99967937,0.00022997,2]
[312368599,1705837834394,-2093.1197052,0.00022997,2]
[312368600,1705837834403,-156.89259705,0.00022997,2]
[312368601,1705837834412,-243.64840877,0.00022997,2]
[312368602,1705837834421,-233.03383861,0.00022997,2]
[312368603,1705837834430,-622.07746297,0.00022997,2]
[312368604,1705837834439,-190.51282789,0.00022997,2]
[312368605,1705837834449,-5129.72526166,0.00022997,2]
[312368606,1705837834458,-779.51108395,0.00022997,2]
[312368607,1705837834468,-1000.0,0.00022997,2]
[312368608,1705837834477,-199.60808767,0.00022997,2]
[312368609,1705837834487,-353.39032026,0.00022997,2]
[312368610,1705837834496,-233.99962538,0.00022997,2]
[312368611,1705837834505,-1981.22871792,0.00022997,2]
[312368612,1705837834514,-563.05698065,0.00022997,2]
[312368613,1705837834523,-162.69544963,0.00022997,2]
[312368614,1705837834533,-155.57624308,0.00022997,2]
[312368615,1705837834542,-343.77148873,0.00022997,2]
[312368616,1705837834551,-171.69607649,0.00022997,2]
[312368617,1705837834560,-311.59150887,0.00022997,2]
[312368618,1705837834569,-155.0,0.00022997,2]
[312368619,1705837834578,-6022.74137389,0.00022998,2]
[312368620,1705837834588,-3298.13430336,0.00022998,2]
[312368621,1705837834599,-26935.77381133,0.00022998,2]
[312368622,1705837834608,-2040.73417779,0.00022998,2]
[312368623,1705837834617,-250.13016408,0.00022998,2]
[312368624,1705837834626,-226.23222403,0.00022999,3]
[312368625,1705837834635,-665.0,0.00022999,2]
[312368626,1705837834645,-436.3994511,0.00023,3]
[312368627,1705837834654,-8199.80258085,0.00023,2]
[312368628,1705837834663,-201704.75159582,0.00023,3]
[312368629,1705837834676,-66589.18632204,0.00023,3]
[312368630,1705837834687,-426.36,0.00023,3]
[312368631,1705837834710,-12505.77550274,0.00023,3]
[312368632,1705837834722,-440.50048215,0.00023,3]
[312368635,1705837839212,-3298.13430336,0.00022998,2]
[312368636,1705837839222,-600.0,0.00022999,2]
[312368637,1705837839233,-4434.2094841,0.00023,3]
[312368638,1705837839245,-17422.55798449,0.00023,3]
[312368639,1705837839327,-706.17412331,0.00023,3]
[312368640,1705837839339,-3150.33324138,0.00023,3]
[312368641,1705837839351,-3020.66396125,0.00023,3]
[312368642,1705837839372,-108881.46065074,0.00023,3]
[312368643,1705837839391,-31345.74903204,0.00023,3]
[312368644,1705837839406,-477.82014727,0.00023,3]
[312368645,1705837839443,-21970.824,0.00023,3]
[312368646,1705837839454,-4963.49662326,0.00023,3]
[312368732,1705837840298,-872.39353263,0.00023,3]
[312368735,1705837840312,-3179.34034772,0.00023,3]
[312368737,1705837840328,-8052.90167903,0.00023,3]
[312368740,1705837840342,-1924.35842146,0.00023,3]
[312368806,1705837841058,-2447.46960522,0.00023,3]
[312368808,1705837841071,-4578.95737862,0.00023,3]
[312368811,1705837841083,-2421.31069343,0.00023,3]
[312368815,1705837841115,-338.64724169,0.00023,3]
[312368817,1705837841127,-308.0779093,0.00023,3]
[312369002,1705837842756,-1291.24578311,0.00022999,2]
[312369004,1705837842769,-833.79910387,0.00022999,2]
[312369010,1705837842813,-105.63261164,0.00022999,2]
[312369012,1705837842824,-560.96462103,0.00023,3]
[312369161,1705837844332,-489.86852642,0.00023,3]
[312369168,1705837844388,-500.0,0.00023,3]
[312369289,1705837845779,-642.423,0.00023,3]
[312369290,1705837845894,-858.33591374,0.00023,3]
[312369362,1705837846556,-542.0,0.00022999,2]
[312369364,1705837846565,-1962.69491839,0.00023,3]
[312369366,1705837846579,-23095.64665558,0.00023,3]
[312369369,1705837846591,-1467.8276897,0.00023,3]
[312369584,1705837912140,962.66278561,0.00021,4]
[312369631,1705838057911,166.29022055,0.00036115,120]
[312369632,1705838059818,224.0855848,0.00036115,120]
[312369633,1705838060506,1612.04965852,0.00036115,120]
[312369635,1705838080265,282.33,0.00020627,2]
[312369637,1705838280832,1670.75988558,0.0002,2]
[312369639,1705838524671,208.0,0.00021359,2]
[312369640,1705838566983,276.1,0.00020126,2]
[312369641,1705838728405,150.0,0.00020688,2]
[312369657,1705839037926,-160.11623883,0.000218,2]
[312369658,1705839037936,-233.13,0.00021838,2]
[312369659,1705839037946,-392.91,0.00021868,2]
[312369660,1705839037955,-250.0,0.000219,2]
[312369661,1705839037965,-176.39,0.000219,2]
[312369662,1705839037975,-629.25,0.00021928,2]
[312369663,1705839037986,-250.0,0.00021939,2]
[312369664,1705839037997,-432.95,0.00021972,2]
[312369665,1705839038007,-370.75,0.00022043,2]
[312369666,1705839038016,-152.04,0.00022159,2]
[312369667,1705839038026,-276.1,0.0002239,2]
[312369668,1705839038035,-176.39,0.00022448,2]
[312369669,1705839038044,-158.19,0.0002247,2]
[312369670,1705839038054,-499.99,0.0002247,2]
[312369671,1705839038065,-2982.0,0.000225,2]
[312369672,1705839038075,-161.35981865,0.00022594,2]
[312369673,1705839038085,-22883.0,0.000226,2]
[312369674,1705839038095,-233.13,0.00022646,2]
[312369675,1705839038104,-158.19,0.00022694,2]
[312369676,1705839038114,-299.99,0.00022891,7]
[312369677,1705839038123,-1015.27508866,0.00022899,2]
[312369678,1705839038132,-23754.3476,0.00022899,2]
[312369679,1705839038141,-24608.4675,0.000229,2]
[312369680,1705839038151,-9227.9991,0.000229,2]
[312369681,1705839038160,-5000.0,0.000229,2]
[312369682,1705839038169,-6682.04473721,0.000229,2]
[312369683,1705839038179,-156.26651898,0.000229,2]
[312369684,1705839038189,-158.19,0.00022919,2]
[312369685,1705839038198,-364.676,0.00022962,2]